fUSD/lending_fUSD_20250217
["ID","MTS","AMOUNT","RATE_DAILY","PERIOD"]
[353433944,1739825449790,-500.0,0.000191,2]
[353433946,1739825449800,-1303.64263903,0.000191,2]
[353433948,1739825449810,-500.0,0.000191,2]
[353433950,1739825449819,-500.0,0.000191,2]
[353433952,1739825449829,-500.0,0.000191,2]
[353433954,1739825449839,-578.3465423,0.000191,2]
[353433956,1739825449848,-1100.0,0.000191,2]
[353433958,1739825449858,-1100.0,0.000191,2]
[353433960,1739825449867,-500.0,0.000191,2]
[353433962,1739825449876,-1000.0,0.000191,2]
[353433964,1739825449885,-500.0,0.000191,2]
[353433966,1739825449895,-1000.0,0.000191,2]
[353433967,1739825449904,-500.0,0.000191,2]
[353433969,1739825449914,-1100.0,0.000191,2]
[353433971,1739825449924,-1000.0,0.000191,2]
[353433973,1739825449934,-749.43937109,0.000191,2]
[353433975,1739825449944,-1100.0,0.000191,2]
[353433977,1739825449953,-1000.0,0.000191,2]
[353433979,1739825449962,-1100.0,0.000191,2]
[353433981,1739825449972,-1000.0,0.000191,2]
[353433983,1739825449981,-1100.0,0.000191,2]
[353433985,1739825449992,-1000.0,0.000191,2]
[353433987,1739825450002,-1100.0,0.000191,2]
[353433989,1739825450011,-1000.0,0.000191,2]
[353433991,1739825450020,-1000.0,0.000191,2]
[353433993,1739825450029,-1100.0,0.000191,2]
[353433995,1739825450039,-1100.0,0.000191,2]
[353433996,1739825450048,-1000.0,0.000191,2]
[353433998,1739825450059,-1100.0,0.000191,2]
[353433999,1739825450068,-1000.0,0.000191,2]
[353434000,1739825450077,-1100.0,0.000191,2]
[353434001,1739825450087,-1000.0,0.000191,2]
[353434002,1739825450096,-1100.0,0.000191,2]
[353434003,1739825450106,-1000.0,0.000191,2]
[353434004,1739825450116,-1948.13604299,0.000191,2]
[353434005,1739825450125,-1000.0,0.000191,2]
[353434006,1739825450134,-1595.36408982,0.000191,2]
[353434007,1739825450143,-591.63404783,0.000191,2]
[353434008,1739825450152,-500.0,0.000191,2]
[353434009,1739825450162,-500.0,0.000191,2]
[353434011,1739825450171,-500.0,0.000191,2]
[353434013,1739825450181,-500.0,0.000191,2]
[353434015,1739825450190,-500.0,0.000191,2]
[353434017,1739825450199,-500.0,0.000191,2]
[353434019,1739825450209,-500.0,0.000191,2]
[353434021,1739825450219,-500.0,0.000191,2]
[353434023,1739825450229,-500.0,0.000191,2]
[353434025,1739825450238,-500.0,0.000191,2]
[353434027,1739825450247,-500.0,0.000191,2]
[353434029,1739825450256,-500.0,0.000191,2]
[353434031,1739825450265,-500.0,0.000191,2]
[353434033,1739825450274,-150.0,0.00019106,2]
[353434035,1739825450284,-5077.1212689,0.0001911,2]
[353434037,1739825450293,-2354.63,0.00019123,2]
[353434039,1739825450303,-5000.0,0.0001915,2]
[353434041,1739825450312,-500294.7111542,0.0001915,7]
[353434042,1739825450321,-11916.49,0.00019151,2]
[353434044,1739825450331,-500.0,0.00019178,2]
[353434046,1739825450341,-500.0,0.00019178,2]
[353434048,1739825450350,-361.48494167,0.00019178,2]
[353434050,1739825450359,-211.73791946,0.00019178,2]
[353434052,1739825450369,-500.0,0.00019178,2]
[353434054,1739825450378,-500.0,0.00019178,2]
[353434086,1739825450670,-416.91039685,0.00019178,2]
[353434088,1739825450681,-500.0,0.00019178,2]
[353434090,1739825450690,-288.26208054,0.00019178,2]
[353434092,1739825450699,-258.72696342,0.00019178,2]
[353434094,1739825450708,-500.0,0.00019178,2]
[353434096,1739825450717,-417.32985462,0.00019178,2]
[353434097,1739825450727,-500.0,0.00019178,5]
[353434099,1739825450736,-500.0,0.00019178,5]
[353434101,1739825450748,-500.0,0.00019178,5]
[353434103,1739825450758,-500.0,0.00019178,5]
[353434105,1739825450767,-500.0,0.00019178,5]
[353434107,1739825450775,-500.0,0.00019178,5]
[353434109,1739825450786,-500.0,0.00019178,5]
[353434111,1739825450795,-500.0,0.00019178,5]
[353434113,1739825450804,-500.0,0.00019178,5]
[353434115,1739825450813,-500.0,0.00019178,5]
[353434117,1739825450822,-372.69556127,0.00019178,5]
[353434119,1739825450832,-151.0,0.00019178,2]
[353434121,1739825450842,-2000.0,0.00019178,2]
[353434123,1739825450851,-3233.23,0.00019178,2]
[353434125,1739825450861,-230.02733699,0.00019178,2]
[353434127,1739825450870,-150.0,0.00019178,2]
[353434129,1739825450879,-5000.0,0.00019188,2]
[353434131,1739825450888,-500.0,0.00019188,2]
[353434133,1739825450897,-4670.21605907,0.00019193,2]
[353434135,1739825450906,-500.0,0.00019196,2]
[353434137,1739825450915,-500.0,0.00019196,2]
[353434139,1739825450924,-500.0,0.00019196,2]
[353434141,1739825450933,-5000.0,0.00019197,2]
[353434142,1739825450941,-200.0,0.000192,2]
[353434144,1739825450950,-2000.0,0.00019228,2]
[353434146,1739825450959,-791.29,0.00019242,30]
[353434148,1739825450969,-2000.0,0.00019278,2]
[353434150,1739825450978,-336.90152,0.00019288,7]
[353434152,1739825450987,-500.0,0.00019288,2]
[353434154,1739825450997,-40000.0,0.00019299,6]
[353434156,1739825451006,-1627.57759105,0.000193,2]
[353434158,1739825451016,-213.81749124,0.00019304,2]
[353434160,1739825451025,-438.93,0.00019307,2]
[353434162,1739825451034,-300.0,0.00019307,2]
[353434164,1739825451044,-5000.0,0.0001931,2]
[353434166,1739825451053,-5000.0,0.00019313,2]
[353434168,1739825451063,-1764.22,0.00019315,2]
[353434170,1739825451072,-47200.0,0.00019316,2]
[353434172,1739825451081,-7288.01187456,0.00019326,2]
[353434174,1739825451090,-2000.0,0.00019328,2]
[353434176,1739825451099,-464.8,0.00019335,2]
[353434178,1739825451108,-150.40475384,0.00019365,2]
[353434180,1739825451117,-2000.0,0.00019377,2]
[353434182,1739825451126,-25000.0,0.00019388,2]
[353434184,1739825451135,-500.0,0.00019388,2]
[353434185,1739825451144,-223012.31364345,0.000194,2]
[353434187,1739825451154,-1123135.40070987,0.000194,2]
[353434189,1739825451163,-151.0,0.000194,2]
[353434191,1739825451172,-26642.33847564,0.00019401,2]
[353434193,1739825451182,-5000.0,0.00019412,2]
[353434195,1739825451192,-3017.75,0.00019412,2]
[353434197,1739825451201,-2000.0,0.0001942,2]
[353434199,1739825451210,-2000.0,0.00019427,2]
[353434201,1739825451220,-903.07,0.00019433,2]
[353434203,1739825451230,-437.29,0.00019444,2]
[353434205,1739825451239,-25000.0,0.00019446,2]
[353434207,1739825451250,-950.4,0.00019447,2]
[353434209,1739825451259,-5000.0,0.00019449,2]
[353434211,1739825451268,-150.0,0.00019452,2]
[353434213,1739825451277,-150.0,0.00019467,2]
[353434215,1739825451286,-2000.0,0.00019477,2]
[353434217,1739825451296,-2539.2,0.00019478,2]
[353434219,1739825451305,-2500.0,0.00019483,2]
[353434221,1739825451315,-336.90152,0.00019488,7]
[353434223,1739825451324,-500.0,0.00019488,2]
[353434225,1739825451334,-25000.0,0.00019495,2]
[353434227,1739825451343,-5000.0,0.00019499,2]
[353434229,1739825451353,-700.48,0.000195,31]
[353434231,1739825451363,-700.48,0.000195,31]
[353434233,1739825451372,-700.48,0.000195,31]
[353434235,1739825451381,-700.48,0.000195,31]
[353434237,1739825451391,-700.48,0.000195,31]
[353434239,1739825451401,-700.48,0.000195,31]
[353434241,1739825451411,-700.48,0.000195,31]
[353434243,1739825451420,-700.48,0.000195,31]
[353434245,1739825451429,-700.48,0.000195,31]
[353434247,1739825451439,-700.48,0.000195,31]
[353434249,1739825451448,-700.48,0.000195,31]
[353434251,1739825451458,-700.48,0.000195,31]
[353434253,1739825451467,-700.48,0.000195,31]
[353434255,1739825451477,-700.48,0.000195,31]
[353434257,1739825451486,-700.48,0.000195,31]
[353434259,1739825451495,-700.48,0.000195,31]
[353434261,1739825451504,-700.48,0.000195,31]
[353434263,1739825451514,-700.48,0.000195,31]
[353434265,1739825451524,-700.48,0.000195,31]
[353434267,1739825451533,-700.48,0.000195,31]
[353434269,1739825451543,-700.48,0.000195,31]
[353434271,1739825451553,-700.48,0.000195,31]
[353434273,1739825451564,-700.48,0.000195,31]
[353434275,1739825451574,-700.48,0.000195,31]
[353434277,1739825451583,-1023.97994152,0.00019506,3]
[353434279,1739825451593,-167.81627907,0.00019506,2]
[353434281,1739825451602,-4867.13264066,0.00019506,2]
[353434283,1739825451611,-456.82883679,0.00019506,2]
[353434285,1739825451620,-25000.0,0.00019506,2]
[353434287,1739825451629,-2000.0,0.00019527,2]
[353434289,1739825451639,-2000.0,0.00019577,2]
[353434291,1739825451648,-500.0,0.00019588,2]
[353434293,1739825451657,-3291.35501573,0.0001961,2]
[353434295,1739825451667,-25000.0,0.00019618,2]
[353434297,1739825451676,-1500.0,0.00019622,2]
[353434299,1739825451686,-2000.0,0.00019626,2]
[353434301,1739825451695,-14767.32,0.00019643,2]
[353434303,1739825451704,-221.77,0.00019657,2]
[353434305,1739825451713,-176.45,0.00019658,2]
[353434307,1739825451723,-2000.0,0.00019676,2]
[353434309,1739825451733,-500.0,0.00019688,2]
[353434311,1739825451743,-100044.7579687,0.000197,2]
[353434312,1739825451755,-7357.91,0.000197,2]
[353434314,1739825451765,-75766.99217031,0.000197,7]
[353434331,1739825451915,-198.75374475,0.0001518,2]
[353434333,1739825451927,-298.59625525,0.0001518,2]
[353434335,1739825451936,-1035.57878975,0.000197,7]
[353434339,1739825451962,-150.0,0.00017878,2]
[353434341,1739825451971,-150.0,0.00018024,2]
[353434343,1739825451981,-150.0,0.00018076,2]
[353434346,1739825452002,-101.77973283,0.000197,7]
[353434348,1739825452014,-19201.25690625,0.000197,7]
[353434476,1739826392452,300.0,0.0002,120]
[353434482,1739826449308,293.0,0.0002,120]
[353434499,1739826631864,-1865.0696366,8.836e-05,2]
[353434500,1739826631873,-559.536,8.836e-05,2]
[353434501,1739826631883,-300.0,9.735e-05,2]
[353434502,1739826631892,-200.0,9.736e-05,2]
[353434503,1739826631901,-150.0,9.736e-05,2]
[353434504,1739826631911,-150.0,9.736e-05,2]
[353434505,1739826631920,-6322.44700179,9.736e-05,2]
[353434506,1739826631932,-2727.3619961,9.736e-05,2]
[353434507,1739826631945,-1285.33763988,9.736e-05,2]
[353434508,1739826631956,-270.63314159,9.736e-05,2]
[353434509,1739826631966,-550.0,0.0001,2]
[353434510,1739826631975,-204.01,0.00010137,2]
[353434511,1739826631985,-200.0,0.00011275,2]
[353434512,1739826632003,-250.0,0.00011948,2]
[353434513,1739826632014,-600.0,0.00012,2]
[353434514,1739826632023,-1028.48,0.00012,2]
[353434515,1739826632033,-174.47,0.00012466,2]
[353434516,1739826632042,-3218.72,0.00012533,2]
[353434517,1739826632053,-531.91,0.0001261,2]
[353434518,1739826632062,-4541.48,0.00012673,2]
[353434519,1739826632072,-518.58,0.00012771,2]
[353434520,1739826632081,-200.0,0.00012868,2]
[353434521,1739826632091,-500.0,0.00013359,2]
[353434523,1739826632101,-1128.08,0.00013359,2]
[353434525,1739826632111,-196.55,0.00013359,2]
[353434527,1739826632121,-2000.0,0.00013359,2]
[353434529,1739826632131,-11052.89,0.00013459,2]
[353434530,1739826632144,-321.00166041,0.00013598,2]
[353434531,1739826632153,-292.42505613,0.00013644,2]
[353434532,1739826632162,-165.93,0.00013668,2]
[353434533,1739826632172,-150.0,0.00013697,2]
[353434534,1739826632180,-500.0,0.00013698,2]
[353434535,1739826632189,-500.0,0.00013698,2]
[353434536,1739826632199,-500.0,0.00013698,2]
[353434537,1739826632208,-500.0,0.00013698,2]
[353434538,1739826632219,-505.07218259,0.00013698,2]
[353434540,1739826632229,-500.0,0.00013698,2]
[353434542,1739826632239,-500.0,0.00013698,2]
[353434543,1739826632249,-500.0,0.00013698,2]
[353434545,1739826632259,-500.0,0.00013698,2]
[353434547,1739826632270,-500.0,0.00013698,2]
[353434549,1739826632280,-342.33165765,0.00013698,2]
[353434552,1739826632290,-500.0,0.00013698,2]
[353434555,1739826632299,-500.0,0.00013698,2]
[353434557,1739826632308,-500.0,0.00013698,2]
[353434559,1739826632318,-500.0,0.00013698,2]
[353434561,1739826632328,-500.0,0.00013698,2]
[353434586,1739826632563,-500.0,0.00013698,2]
[353434588,1739826632572,-500.0,0.00013698,2]
[353434590,1739826632581,-500.0,0.00013698,2]
[353434592,1739826632590,-500.0,0.00013698,2]
[353434594,1739826632600,-509.2340643,0.00013698,2]
[353434596,1739826632609,-500.0,0.00013698,2]
[353434598,1739826632618,-500.0,0.00013698,2]
[353434600,1739826632627,-500.0,0.00013698,2]
[353434602,1739826632636,-500.0,0.00013698,2]
[353434604,1739826632645,-500.0,0.00013698,2]
[353434606,1739826632654,-508.27,0.00013698,2]
[353434608,1739826632663,-500.0,0.00013698,2]
[353434610,1739826632673,-500.0,0.00013698,2]
[353434612,1739826632682,-500.0,0.00013698,2]
[353434613,1739826632691,-500.0,0.00013698,2]
[353434615,1739826632700,-500.0,0.00013698,2]
[353434617,1739826632709,-500.0,0.00013698,2]
[353434619,1739826632719,-500.0,0.00013698,2]
[353434621,1739826632730,-500.0,0.00013698,2]
[353434623,1739826632739,-500.0,0.00013698,2]
[353434625,1739826632749,-500.0,0.00013698,2]
[353434627,1739826632758,-500.0,0.00013698,2]
[353434629,1739826632767,-500.0,0.00013698,2]
[353434631,1739826632777,-500.0,0.00013698,2]
[353434633,1739826632785,-500.0,0.00013698,2]
[353434635,1739826632796,-500.0,0.00013698,2]
[353434637,1739826632806,-500.0,0.00013698,2]
[353434639,1739826632815,-500.0,0.00013698,2]
[353434641,1739826632824,-500.0,0.00013698,2]
[353434643,1739826632834,-500.0,0.00013698,2]
[353434645,1739826632843,-500.0,0.00013698,2]
[353434647,1739826632852,-500.0,0.00013698,2]
[353434649,1739826632861,-500.0,0.00013698,2]
[353434651,1739826632871,-500.0,0.00013698,2]
[353434653,1739826632880,-500.0,0.00013698,2]
[353434655,1739826632890,-500.0,0.00013698,2]
[353434657,1739826632899,-500.0,0.00013698,2]
[353434659,1739826632908,-500.0,0.00013698,2]
[353434661,1739826632918,-500.0,0.00013698,2]
[353434663,1739826632928,-500.0,0.00013698,2]
[353434665,1739826632937,-500.0,0.00013698,2]
[353434667,1739826632947,-500.0,0.00013698,2]
[353434669,1739826632956,-500.0,0.00013698,2]
[353434671,1739826632966,-500.0,0.00013698,2]
[353434673,1739826632976,-500.0,0.00013698,2]
[353434675,1739826632985,-500.0,0.00013698,2]
[353434677,1739826632995,-500.0,0.00013698,2]
[353434679,1739826633004,-559.8,0.00013698,2]
[353434681,1739826633013,-500.0,0.00013698,2]
[353434683,1739826633022,-500.0,0.00013698,2]
[353434685,1739826633032,-500.0,0.00013698,2]
[353434687,1739826633041,-500.0,0.00013698,2]
[353434689,1739826633051,-500.0,0.00013698,2]
[353434691,1739826633061,-500.0,0.00013698,2]
[353434694,1739826633071,-500.0,0.00013698,2]
[353434696,1739826633081,-500.0,0.00013698,2]
[353434697,1739826633091,-500.0,0.00013698,2]
[353434699,1739826633100,-500.0,0.00013698,2]
[353434701,1739826633110,-533.87475642,0.00013698,2]
[353434703,1739826633118,-500.0,0.00013698,2]
[353434705,1739826633128,-500.0,0.00013698,2]
[353434707,1739826633141,-500.0,0.00013698,2]
[353434709,1739826633151,-500.0,0.00013698,2]
[353434711,1739826633160,-500.0,0.00013698,2]
[353434713,1739826633169,-500.0,0.00013698,2]
[353434715,1739826633179,-549.68,0.00013698,2]
[353434717,1739826633189,-500.0,0.00013698,2]
[353434719,1739826633200,-500.0,0.00013698,2]
[353434721,1739826633209,-500.0,0.00013698,2]
[353434723,1739826633219,-500.0,0.00013698,2]
[353434725,1739826633228,-500.0,0.00013698,2]
[353434727,1739826633237,-500.0,0.00013698,2]
[353434729,1739826633248,-500.0,0.00013698,2]
[353434731,1739826633256,-500.0,0.00013698,2]
[353434733,1739826633266,-500.0,0.00013698,2]
[353434735,1739826633276,-500.0,0.00013698,2]
[353434737,1739826633286,-500.0,0.00013698,2]
[353434739,1739826633296,-500.0,0.00013698,2]
[353434741,1739826633307,-500.0,0.00013698,2]
[353434743,1739826633316,-500.0,0.00013698,2]
[353434745,1739826633326,-620.2,0.00013698,2]
[353434747,1739826633335,-511.51214902,0.00013698,2]
[353434749,1739826633345,-500.0,0.00013698,2]
[353434751,1739826633354,-500.0,0.00013698,2]
[353434753,1739826633364,-500.0,0.00013698,2]
[353434755,1739826633374,-500.0,0.00013698,2]
[353434757,1739826633383,-500.0,0.00013698,2]
[353434759,1739826633392,-500.0,0.00013698,2]
[353434760,1739826633402,-535.44786384,0.00013698,2]
[353434763,1739826633412,-500.0,0.00013698,2]
[353434764,1739826633421,-500.0,0.00013698,2]
[353434767,1739826633431,-500.0,0.00013698,2]
[353434768,1739826633441,-500.0,0.00013698,2]
[353434770,1739826633451,-500.0,0.00013698,2]
[353434772,1739826633461,-500.0,0.00013698,2]
[353434774,1739826633470,-500.0,0.00013698,2]
[353434776,1739826633480,-500.0,0.00013698,2]
[353434778,1739826633489,-548.12,0.00013698,2]
[353434780,1739826633499,-500.0,0.00013698,2]
[353434782,1739826633508,-500.0,0.00013698,2]
[353434784,1739826633518,-500.0,0.00013698,2]
[353434786,1739826633527,-500.0,0.00013698,2]
[353434788,1739826633537,-536.69,0.00013698,2]
[353434790,1739826633547,-500.0,0.00013698,2]
[353434792,1739826633558,-500.0,0.00013698,2]
[353434794,1739826633569,-500.0,0.00013698,2]
[353434796,1739826633578,-500.0,0.00013698,2]
[353434798,1739826633588,-500.0,0.00013698,2]
[353434800,1739826633597,-500.0,0.00013698,2]
[353434802,1739826633607,-500.0,0.00013698,2]
[353434804,1739826633617,-500.0,0.00013698,2]
[353434806,1739826633627,-500.0,0.00013698,2]
[353434808,1739826633636,-527.19,0.00013698,2]
[353434810,1739826633645,-501.60888486,0.00013698,2]
[353434812,1739826633655,-500.0,0.00013698,2]
[353434813,1739826633664,-500.0,0.00013698,2]
[353434815,1739826633674,-525.74212989,0.00013698,2]
[353434817,1739826633684,-500.0,0.00013698,2]
[353434819,1739826633693,-500.0,0.00013698,2]
[353434821,1739826633703,-500.0,0.00013698,2]
[353434823,1739826633712,-502.13547077,0.00013698,2]
[353434825,1739826633722,-500.0,0.00013698,2]
[353434827,1739826633732,-584.78984918,0.00013698,2]
[353434829,1739826633741,-500.0,0.00013698,2]
[353434831,1739826633751,-500.0,0.00013698,2]
[353434833,1739826633760,-500.0,0.00013698,2]
[353434835,1739826633769,-500.0,0.00013698,2]
[353434837,1739826633779,-500.0,0.00013698,2]
[353434839,1739826633789,-310.21769562,0.00013698,2]
[353434841,1739826633799,-500.0,0.00013698,2]
[353434843,1739826633809,-500.0,0.00013698,2]
[353434845,1739826633820,-500.0,0.00013698,2]
[353434847,1739826633830,-500.0,0.00013698,2]
[353434849,1739826633840,-645.5,0.00013698,2]
[353434851,1739826633850,-500.0,0.00013698,2]
[353434853,1739826633860,-500.0,0.00013698,2]
[353434855,1739826633870,-500.0,0.00013698,2]
[353434857,1739826633879,-500.0,0.00013698,2]
[353434859,1739826633889,-500.0,0.00013698,2]
[353434861,1739826633899,-500.0,0.00013698,2]
[353434863,1739826633909,-500.0,0.00013698,2]
[353434865,1739826633919,-328.63491196,0.00013698,2]
[353434867,1739826633929,-500.0,0.00013698,2]
[353434869,1739826633938,-569.8,0.00013698,2]
[353434871,1739826633947,-500.0,0.00013698,2]
[353434873,1739826633957,-518.35,0.00013698,2]
[353434875,1739826633966,-500.0,0.00013698,2]
[353434877,1739826633975,-500.0,0.00013698,2]
[353434879,1739826633985,-500.0,0.00013698,2]
[353434880,1739826633995,-500.0,0.00013698,2]
[353434882,1739826634004,-500.0,0.00013698,2]
[353434885,1739826634015,-627.04,0.00013698,2]
[353434886,1739826634024,-500.0,0.00013698,2]
[353434888,1739826634034,-500.0,0.00013698,2]
[353434890,1739826634043,-500.0,0.00013698,2]
[353434893,1739826634054,-500.0,0.00013698,2]
[353434894,1739826634064,-500.0,0.00013698,2]
[353434896,1739826634074,-500.0,0.00013698,2]
[353434898,1739826634084,-500.0,0.00013698,2]
[353434900,1739826634093,-500.0,0.00013698,2]
[353434902,1739826634102,-500.0,0.00013698,2]
[353434904,1739826634112,-500.82356971,0.00013698,2]
[353434906,1739826634121,-500.0,0.00013698,2]
[353434908,1739826634131,-500.0,0.00013698,2]
[353434911,1739826634145,-500.0,0.00013698,2]
[353434912,1739826634154,-500.0,0.00013698,2]
[353434915,1739826634164,-500.0,0.00013698,2]
[353434916,1739826634174,-500.78219175,0.00013698,2]
[353434918,1739826634184,-500.0,0.00013698,2]
[353434921,1739826634194,-500.0,0.00013698,2]
[353434922,1739826634203,-369.76729884,0.00013698,2]
[353434924,1739826634213,-500.0,0.00013698,2]
[353434926,1739826634223,-500.0,0.00013698,2]
[353434929,1739826634233,-500.0,0.00013698,2]
[353434931,1739826634243,-500.0,0.00013698,2]
[353434932,1739826634253,-500.0,0.00013698,2]
[353434934,1739826634262,-428.80384126,0.00013698,2]
[353434937,1739826634272,-500.0,0.00013698,2]
[353434938,1739826634281,-500.0,0.00013698,2]
[353434940,1739826634291,-500.0,0.00013698,2]
[353434943,1739826634301,-500.0,0.00013698,2]
[353434945,1739826634311,-500.0,0.00013698,2]
[353434946,1739826634320,-500.0,0.00013698,2]
[353434948,1739826634329,-500.0,0.00013698,2]
[353434949,1739826634339,-500.0,0.00013698,2]
[353434950,1739826634349,-500.0,0.00013698,2]
[353434951,1739826634358,-500.0,0.00013698,2]
[353434952,1739826634368,-500.0,0.00013698,2]
[353434953,1739826634377,-519.34,0.00013698,2]
[353434954,1739826634387,-500.0,0.00013698,2]
[353434955,1739826634397,-518.05047692,0.00013698,2]
[353434956,1739826634406,-553.96638727,0.00013698,2]
[353434957,1739826634415,-500.0,0.00013698,2]
[353434958,1739826634425,-500.0,0.00013698,2]
[353434960,1739826634435,-500.0,0.00013698,2]
[353434962,1739826634445,-500.0,0.00013698,2]
[353434964,1739826634454,-500.0,0.00013698,2]
[353434966,1739826634463,-500.0,0.00013698,2]
[353434968,1739826634473,-500.0,0.00013698,2]
[353434970,1739826634482,-500.0,0.00013698,2]
[353434972,1739826634492,-500.0,0.00013698,2]
[353434974,1739826634501,-500.0,0.00013698,2]
[353434976,1739826634511,-500.0,0.00013698,2]
[353434978,1739826634520,-500.0,0.00013698,2]
[353434980,1739826634530,-500.0,0.00013698,2]
[353434982,1739826634540,-500.0,0.00013698,2]
[353434984,1739826634549,-502.13438114,0.00013698,2]
[353434986,1739826634560,-503.14,0.00013698,2]
[353434988,1739826634570,-500.0,0.00013698,2]
[353434990,1739826634580,-644.4,0.00013698,2]
[353434992,1739826634589,-500.0,0.00013698,2]
[353434994,1739826634599,-500.0,0.00013698,2]
[353434996,1739826634608,-500.0,0.00013698,2]
[353434998,1739826634617,-500.60435142,0.00013698,2]
[353435000,1739826634626,-500.0,0.00013698,2]
[353435002,1739826634635,-500.0,0.00013698,2]
[353435004,1739826634644,-500.0,0.00013698,2]
[353435006,1739826634653,-500.0,0.00013698,2]
[353435008,1739826634663,-500.0,0.00013698,2]
[353435010,1739826634673,-500.0,0.00013698,2]
[353435012,1739826634682,-500.0,0.00013698,2]
[353435014,1739826634691,-500.0,0.00013698,2]
[353435016,1739826634700,-500.0,0.00013698,2]
[353435018,1739826634710,-500.0,0.00013698,2]
[353435020,1739826634718,-500.0,0.00013698,2]
[353435022,1739826634728,-500.0,0.00013698,2]
[353435024,1739826634737,-500.0,0.00013698,2]
[353435026,1739826634747,-500.0,0.00013698,2]
[353435028,1739826634756,-500.0,0.00013698,2]
[353435030,1739826634765,-500.0,0.00013698,2]
[353435032,1739826634775,-500.0,0.00013698,2]
[353435034,1739826634784,-500.0,0.00013698,2]
[353435036,1739826634794,-500.0,0.00013698,2]
[353435038,1739826634810,-500.0,0.00013698,2]
[353435040,1739826634819,-500.0,0.00013698,2]
[353435042,1739826634828,-500.0,0.00013698,2]
[353435044,1739826634838,-500.0,0.00013698,2]
[353435046,1739826634847,-565.4,0.00013698,2]
[353435048,1739826634856,-475.76955501,0.00013698,2]
[353435050,1739826634866,-500.84232981,0.00013698,2]
[353435052,1739826634876,-500.0,0.00013698,2]
[353435054,1739826634887,-500.0,0.00013698,2]
[353435056,1739826634896,-500.0,0.00013698,2]
[353435058,1739826634905,-500.0,0.00013698,2]
[353435060,1739826634914,-500.0,0.00013698,2]
[353435062,1739826634923,-500.0,0.00013698,2]
[353435064,1739826634932,-500.92195474,0.00013698,2]
[353435066,1739826634942,-500.0,0.00013698,2]
[353435068,1739826634951,-500.0,0.00013698,2]
[353435070,1739826634960,-500.0,0.00013698,2]
[353435072,1739826634970,-500.0,0.00013698,2]
[353435074,1739826634979,-500.0,0.00013698,2]
[353435076,1739826634989,-500.0,0.00013698,2]
[353435078,1739826634998,-500.0,0.00013698,2]
[353435080,1739826635008,-500.0,0.00013698,2]
[353435082,1739826635018,-500.0,0.00013698,2]
[353435084,1739826635027,-502.23192998,0.00013698,2]
[353435086,1739826635037,-500.0,0.00013698,2]
[353435088,1739826635046,-542.68,0.00013698,2]
[353435090,1739826635056,-500.0,0.00013698,2]
[353435092,1739826635066,-500.0,0.00013698,2]
[353435094,1739826635075,-500.0,0.00013698,2]
[353435097,1739826635086,-500.0,0.00013698,2]